[Event "Early-Titled-Tuesday-Blitz-April-23-2024"]
[Site "Chess.com"]
[Date "2024.04.23"]
[Round "1"]
[White "TenisMaster"]
[Black "hakanazeri2"]
[Result "1-0"]
[WhiteElo "2975"]
[BlackElo "2539"]
[TimeControl "180+1"]
[EndTime "8:07:16 PDT"]
[Termination "TenisMaster won on time"]

1. e4 {[%clk 0:03:00.9]} 1... c5 {[%clk 0:02:48.2]} 2. Nf3 {[%clk 0:02:59.9]}
2... d6 {[%clk 0:02:48.1]} 3. d4 {[%clk 0:03:00]} 3... cxd4 {[%clk 0:02:49]} 4.
Nxd4 {[%clk 0:03:00.5]} 4... Nf6 {[%clk 0:02:49.4]} 5. Nc3 {[%clk 0:03:01.1]}
5... a6 {[%clk 0:02:49.4]} 6. Be3 {[%clk 0:03:00.4]} 6... e5 {[%clk 0:02:49.3]}
7. Nb3 {[%clk 0:03:00]} 7... Be7 {[%clk 0:02:49.3]} 8. f3 {[%clk 0:02:58.9]}
8... Be6 {[%clk 0:02:44.9]} 9. Qd2 {[%clk 0:02:59.2]} 9... Nbd7 {[%clk
0:02:44.2]} 10. g4 {[%clk 0:02:56.5]} 10... b5 {[%clk 0:02:36.8]} 11. g5 {[%clk
0:02:53.5]} 11... Nh5 {[%clk 0:02:36.7]} 12. O-O-O {[%clk 0:02:52.8]} 12... O-O
{[%clk 0:02:33.4]} 13. Nd5 {[%clk 0:02:37.8]} 13... Bxd5 {[%clk 0:02:30.3]} 14.
exd5 {[%clk 0:02:38.7]} 14... Nf4 {[%clk 0:02:27.5]} 15. Bxf4 {[%clk 0:02:35.2]}
15... exf4 {[%clk 0:02:26.8]} 16. h4 {[%clk 0:02:36.1]} 16... f6 {[%clk
0:01:52.1]} 17. Nd4 {[%clk 0:02:28.2]} 17... Nc5 {[%clk 0:01:33]} 18. g6 {[%clk
0:02:07.3]} 18... hxg6 {[%clk 0:01:27.9]} 19. Qg2 {[%clk 0:02:07.3]} 19... Qe8
{[%clk 0:01:19.7]} 20. Re1 {[%clk 0:01:53.4]} 20... Qf7 {[%clk 0:01:18.1]} 21.
Ne6 {[%clk 0:01:47.3]} 21... Nxe6 {[%clk 0:00:54.4]} 22. Rxe6 {[%clk 0:01:40.1]}
22... Rae8 {[%clk 0:00:42.9]} 23. Bd3 {[%clk 0:01:29.7]} 23... f5 {[%clk
0:00:43]} 24. Qxg6 {[%clk 0:01:08.4]} 24... Qxg6 {[%clk 0:00:36.3]} 25. Rxg6
{[%clk 0:01:09.3]} 25... Rf7 {[%clk 0:00:29.8]} 26. h5 {[%clk 0:01:07.5]} 26...
Kh7 {[%clk 0:00:26.6]} 27. Re6 {[%clk 0:01:06.3]} 27... Rd8 {[%clk 0:00:21.2]}
28. c3 {[%clk 0:01:02.4]} 28... Bg5 {[%clk 0:00:19.3]} 29. Rg1 {[%clk
0:01:00.2]} 29... Bh6 {[%clk 0:00:17.3]} 30. Rgg6 {[%clk 0:00:59.8]} 30... Rc8
{[%clk 0:00:09]} 31. Rxd6 {[%clk 0:00:58.3]} 31... b4 {[%clk 0:00:08.6]} 32. c4
{[%clk 0:00:58.2]} 32... a5 {[%clk 0:00:08.4]} 33. Rc6 {[%clk 0:00:55.3]} 33...
Re8 {[%clk 0:00:08.8]} 34. Rge6 {[%clk 0:00:52.2]} 34... Rd8 {[%clk 0:00:07]}
35. d6 {[%clk 0:00:50.1]} 35... Bg5 {[%clk 0:00:06.5]} 36. c5 {[%clk 0:00:48.8]}
36... Bf6 {[%clk 0:00:04.7]} 37. Bxf5+ {[%clk 0:00:47.7]} 37... Kg8 {[%clk
0:00:05.1]} 38. Bg6 {[%clk 0:00:47.2]} 38... Rb7 {[%clk 0:00:03.9]} 39. Re8+
{[%clk 0:00:41.5]} 39... Rxe8 {[%clk 0:00:04.1]} 40. Bxe8 {[%clk 0:00:42.4]}
40... Kf8 {[%clk 0:00:04.4]} 41. Bg6 {[%clk 0:00:42.6]} 41... Rb8 {[%clk
0:00:04.3]} 42. Rc7 {[%clk 0:00:40.6]} 42... Bd8 {[%clk 0:00:02.5]} 43. Rf7+
{[%clk 0:00:39.4]} 43... Kg8 {[%clk 0:00:03.2]} 44. c6 {[%clk 0:00:38.6]} 44...
Rc8 {[%clk 0:00:02]} 45. c7 {[%clk 0:00:37.9]} 45... Bf6 {[%clk 0:00:01.3]} 46.
Kd2 {[%clk 0:00:36]} 1-0

[Event "Early-Titled-Tuesday-Blitz-April-23-2024"]
[Site "Chess.com"]
[Date "2024.04.23"]
[Round "1"]
[White "Alexander_Donchenko"]
[Black "SameerMujumdar"]
[Result "0-1"]
[WhiteElo "2878"]
[BlackElo "2522"]
[TimeControl "180+1"]
[EndTime "8:07:18 PDT"]
[Termination "SameerMujumdar won by checkmate"]

1. d4 {[%clk 0:02:57]} 1... Nf6 {[%clk 0:02:59]} 2. c4 {[%clk 0:02:56.7]} 2...
g6 {[%clk 0:02:59.6]} 3. g3 {[%clk 0:02:56.8]} 3... Bg7 {[%clk 0:02:59.7]} 4.
Bg2 {[%clk 0:02:57.5]} 4... O-O {[%clk 0:03:00.2]} 5. Nc3 {[%clk 0:02:58.1]}
5... d6 {[%clk 0:03:00.6]} 6. Nf3 {[%clk 0:02:58.8]} 6... c5 {[%clk 0:03:00.8]}
7. O-O {[%clk 0:02:55.3]} 7... Nc6 {[%clk 0:03:00.3]} 8. dxc5 {[%clk 0:02:55.6]}
8... dxc5 {[%clk 0:03:00.3]} 9. Qa4 {[%clk 0:02:53.1]} 9... Bd7 {[%clk
0:02:48.8]} 10. Qa3 {[%clk 0:02:45.1]} 10... b6 {[%clk 0:02:41.7]} 11. Rd1
{[%clk 0:02:44.5]} 11... Qc8 {[%clk 0:02:35.3]} 12. Bg5 {[%clk 0:02:43.6]} 12...
Bh3 {[%clk 0:02:26.6]} 13. Nd5 {[%clk 0:02:40.4]} 13... Bxg2 {[%clk 0:02:22.6]}
14. Kxg2 {[%clk 0:02:40.5]} 14... Re8 {[%clk 0:02:18.4]} 15. Rac1 {[%clk
0:02:35]} 15... Qb7 {[%clk 0:02:15.4]} 16. Kg1 {[%clk 0:02:28.5]} 16... Rad8
{[%clk 0:02:09.8]} 17. Qa4 {[%clk 0:02:27.8]} 17... Ne4 {[%clk 0:02:01.7]} 18.
Rb1 {[%clk 0:01:57.7]} 18... Nxg5 {[%clk 0:01:51.7]} 19. Nxg5 {[%clk 0:01:58.6]}
19... e6 {[%clk 0:01:46.1]} 20. Nf4 {[%clk 0:01:54.8]} 20... Nd4 {[%clk
0:01:38.9]} 21. e3 {[%clk 0:01:53.2]} 21... h6 {[%clk 0:01:23]} 22. exd4 {[%clk
0:01:49.9]} 22... hxg5 {[%clk 0:01:21.5]} 23. Nd3 {[%clk 0:01:48.6]} 23... Bxd4
{[%clk 0:01:13.7]} 24. Rd2 {[%clk 0:01:41.1]} 24... Re7 {[%clk 0:01:09.6]} 25.
Rbd1 {[%clk 0:01:40.9]} 25... Red7 {[%clk 0:01:09]} 26. Qc2 {[%clk 0:01:34.1]}
26... Kg7 {[%clk 0:01:07.8]} 27. b4 {[%clk 0:01:31.7]} 27... e5 {[%clk
0:01:01.9]} 28. bxc5 {[%clk 0:01:27.7]} 28... bxc5 {[%clk 0:00:56]} 29. Ne1
{[%clk 0:01:25.1]} 29... Qc6 {[%clk 0:00:50.9]} 30. Ng2 {[%clk 0:01:23.2]} 30...
e4 {[%clk 0:00:48.7]} 31. Kf1 {[%clk 0:01:18.5]} 31... f5 {[%clk 0:00:48.7]} 32.
h4 {[%clk 0:01:10.6]} 32... Bf6 {[%clk 0:00:45.8]} 33. hxg5 {[%clk 0:01:03.1]}
33... Bxg5 {[%clk 0:00:43.7]} 34. Qc3+ {[%clk 0:01:03.3]} 34... Bf6 {[%clk
0:00:43.1]} 35. Qa5 {[%clk 0:01:02.5]} 35... Rxd2 {[%clk 0:00:42.1]} 36. Rxd2
{[%clk 0:01:03.4]} 36... Rxd2 {[%clk 0:00:41.8]} 37. Qxd2 {[%clk 0:01:04.3]}
37... Qe6 {[%clk 0:00:39.8]} 38. Qc2 {[%clk 0:00:59.3]} 38... g5 {[%clk
0:00:38.1]} 39. Qa4 {[%clk 0:00:56.4]} 39... Kg6 {[%clk 0:00:36.3]} 40. Ne3
{[%clk 0:00:55.6]} 40... Bd4 {[%clk 0:00:36.2]} 41. Nd5 {[%clk 0:00:54.1]} 41...
f4 {[%clk 0:00:35.5]} 42. g4 {[%clk 0:00:46.1]} 42... e3 {[%clk 0:00:33.9]} 43.
Qc2+ {[%clk 0:00:38.4]} 43... Kg7 {[%clk 0:00:33.6]} 44. f3 {[%clk 0:00:38.9]}
44... Qa6 {[%clk 0:00:31.2]} 45. Ke2 {[%clk 0:00:37.2]} 45... Qa5 {[%clk
0:00:29.7]} 46. Kd3 {[%clk 0:00:34.3]} 46... Qe1 {[%clk 0:00:28.9]} 47. Ke4
{[%clk 0:00:27.5]} 47... e2 {[%clk 0:00:27.5]} 48. Qb3 {[%clk 0:00:24.9]} 48...
Qb4 {[%clk 0:00:25.2]} 49. Nxb4 {[%clk 0:00:18.9]} 49... e1=Q+ {[%clk
0:00:24.7]} 50. Kf5 {[%clk 0:00:16.6]} 50... Qe5# {[%clk 0:00:22.9]} 0-1

[Event "Early-Titled-Tuesday-Blitz-April-23-2024"]
[Site "Chess.com"]
[Date "2024.04.23"]
[Round "1"]
[White "IamSchrodingersCat"]
[Black "NM_Antelacus"]
[Result "1-0"]
[WhiteElo "2622"]
[BlackElo "2275"]
[TimeControl "180+1"]
[EndTime "8:07:18 PDT"]
[Termination "IamSchrodingersCat won on time"]

1. e4 {[%clk 0:03:00.9]} 1... c5 {[%clk 0:03:00]} 2. Nf3 {[%clk 0:03:00.6]} 2...
Nc6 {[%clk 0:03:00]} 3. d4 {[%clk 0:03:00.5]} 3... cxd4 {[%clk 0:03:00.9]} 4.
Nxd4 {[%clk 0:03:01.3]} 4... Nf6 {[%clk 0:03:00.6]} 5. Nc3 {[%clk 0:03:01.5]}
5... e5 {[%clk 0:03:00.5]} 6. Ndb5 {[%clk 0:03:01.8]} 6... d6 {[%clk 0:03:00.6]}
7. Bg5 {[%clk 0:03:01.7]} 7... a6 {[%clk 0:03:00.5]} 8. Na3 {[%clk 0:03:02.2]}
8... b5 {[%clk 0:02:59.8]} 9. Bxf6 {[%clk 0:03:02.4]} 9... gxf6 {[%clk
0:02:58.1]} 10. Nd5 {[%clk 0:03:03.3]} 10... Bg7 {[%clk 0:02:56.2]} 11. Bd3
{[%clk 0:03:02.4]} 11... Ne7 {[%clk 0:02:54.6]} 12. Nxe7 {[%clk 0:03:02.3]}
12... Qxe7 {[%clk 0:02:54.1]} 13. c4 {[%clk 0:03:03.2]} 13... b4 {[%clk
0:02:44.5]} 14. Qa4+ {[%clk 0:02:50.6]} 14... Bd7 {[%clk 0:02:43.9]} 15. Qxb4
{[%clk 0:02:50.5]} 15... O-O {[%clk 0:02:43.4]} 16. O-O {[%clk 0:02:49]} 16...
f5 {[%clk 0:02:32.4]} 17. Rad1 {[%clk 0:02:33.8]} 17... Rab8 {[%clk 0:02:25.1]}
18. Qd2 {[%clk 0:02:26.3]} 18... f4 {[%clk 0:02:11.7]} 19. f3 {[%clk 0:02:04.9]}
19... Be6 {[%clk 0:02:05.5]} 20. Nb1 {[%clk 0:02:02]} 20... Rfc8 {[%clk
0:01:57.9]} 21. b3 {[%clk 0:02:00.5]} 21... Bf6 {[%clk 0:01:50.4]} 22. Nc3
{[%clk 0:01:57.8]} 22... Qb7 {[%clk 0:01:46.7]} 23. Kh1 {[%clk 0:01:51.6]} 23...
Bd8 {[%clk 0:01:44.2]} 24. Nd5 {[%clk 0:01:43.4]} 24... Bxd5 {[%clk 0:01:43.4]}
25. exd5 {[%clk 0:01:44.3]} 25... Bb6 {[%clk 0:01:37.8]} 26. Bf5 {[%clk
0:01:38.2]} 26... Rf8 {[%clk 0:01:29.8]} 27. Qd3 {[%clk 0:01:37.5]} 27... f6
{[%clk 0:01:26.6]} 28. Be6+ {[%clk 0:01:35.8]} 28... Kh8 {[%clk 0:01:24.1]} 29.
Rd2 {[%clk 0:01:33.5]} 29... a5 {[%clk 0:01:19]} 30. g3 {[%clk 0:01:27.1]} 30...
fxg3 {[%clk 0:01:16.7]} 31. hxg3 {[%clk 0:01:28]} 31... Qg7 {[%clk 0:01:11.2]}
32. Rh2 {[%clk 0:01:27.2]} 32... Rb7 {[%clk 0:01:06.3]} 33. Rh3 {[%clk
0:01:16.7]} 33... Qg5 {[%clk 0:01:03]} 34. Kg2 {[%clk 0:01:10.5]} 34... f5
{[%clk 0:00:45.7]} 35. Rfh1 {[%clk 0:00:57.4]} 35... Rg7 {[%clk 0:00:40.2]} 36.
Qe2 {[%clk 0:00:46.7]} 36... Qe3 {[%clk 0:00:22.9]} 37. Qxe3 {[%clk 0:00:42]}
37... Bxe3 {[%clk 0:00:23.8]} 38. Rh5 {[%clk 0:00:37.8]} 38... f4 {[%clk
0:00:17.7]} 39. g4 {[%clk 0:00:38.3]} 39... Rf6 {[%clk 0:00:10.7]} 40. Bf5
{[%clk 0:00:37.9]} 40... h6 {[%clk 0:00:09.2]} 41. Rxh6+ {[%clk 0:00:37]} 41...
Rxh6 {[%clk 0:00:09.4]} 42. Rxh6+ {[%clk 0:00:37.8]} 42... Kg8 {[%clk
0:00:09.9]} 43. Rxd6 {[%clk 0:00:38.3]} 43... Ra7 {[%clk 0:00:06.6]} 44. Rc6
{[%clk 0:00:30.2]} 44... Kf8 {[%clk 0:00:05.1]} 45. d6 {[%clk 0:00:29.8]} 1-0

[Event "Early-Titled-Tuesday-Blitz-April-23-2024"]
[Site "Chess.com"]
[Date "2024.04.23"]
[Round "1"]
[White "EdmundPlayer"]
[Black "TokChess"]
[Result "0-1"]
[WhiteElo "2270"]
[BlackElo "2621"]
[TimeControl "180+1"]
[EndTime "8:07:21 PDT"]
[Termination "TokChess won on time"]

1. c4 {[%clk 0:02:58.5]} 1... Nf6 {[%clk 0:02:57.7]} 2. Nf3 {[%clk 0:02:56.2]}
2... c5 {[%clk 0:02:57.5]} 3. d4 {[%clk 0:02:52.5]} 3... cxd4 {[%clk 0:02:57.8]}
4. Nxd4 {[%clk 0:02:52.7]} 4... g6 {[%clk 0:02:58.5]} 5. Nc3 {[%clk 0:02:52.3]}
5... Bg7 {[%clk 0:02:58.2]} 6. e3 {[%clk 0:02:51.9]} 6... O-O {[%clk 0:02:57.9]}
7. Be2 {[%clk 0:02:50.8]} 7... Nc6 {[%clk 0:02:58.1]} 8. O-O {[%clk 0:02:50.4]}
8... d6 {[%clk 0:02:54.9]} 9. b3 {[%clk 0:02:49.4]} 9... Bd7 {[%clk 0:02:50]}
10. Bb2 {[%clk 0:02:48.8]} 10... Nxd4 {[%clk 0:02:48]} 11. Qxd4 {[%clk
0:02:41.6]} 11... Bc6 {[%clk 0:02:45.6]} 12. Nd5 {[%clk 0:02:25.1]} 12... Bxd5
{[%clk 0:02:33.4]} 13. cxd5 {[%clk 0:02:24.5]} 13... Qb6 {[%clk 0:02:24.5]} 14.
Qxb6 {[%clk 0:02:23]} 14... axb6 {[%clk 0:02:25.4]} 15. Bc4 {[%clk 0:01:59.4]}
15... Ra5 {[%clk 0:02:12.9]} 16. Rfd1 {[%clk 0:01:56.7]} 16... b5 {[%clk
0:01:59.7]} 17. Bc3 {[%clk 0:01:48.9]} 17... Raa8 {[%clk 0:01:40.8]} 18. Bxb5
{[%clk 0:01:48.5]} 18... Rfc8 {[%clk 0:01:38.8]} 19. Bd4 {[%clk 0:01:31]} 19...
Ne4 {[%clk 0:01:33.9]} 20. a4 {[%clk 0:01:13.9]} 20... Nc3 {[%clk 0:01:26.9]}
21. Bxc3 {[%clk 0:01:07.5]} 21... Rxc3 {[%clk 0:01:27.8]} 22. Rab1 {[%clk
0:01:03.2]} 22... Rc2 {[%clk 0:01:19.1]} 23. Rdc1 {[%clk 0:00:52.1]} 23... Rac8
{[%clk 0:01:18.4]} 24. Bc4 {[%clk 0:00:49.2]} 24... Ra2 {[%clk 0:01:11.4]} 25.
g3 {[%clk 0:00:36.9]} 25... Bf6 {[%clk 0:01:08.1]} 26. Bb5 {[%clk 0:00:34.1]}
26... Rcc2 {[%clk 0:00:56.2]} 27. Rxc2 {[%clk 0:00:31.2]} 27... Rxc2 {[%clk
0:00:57.1]} 28. Bc4 {[%clk 0:00:28.3]} 28... Bc3 {[%clk 0:00:50.1]} 29. Rd1
{[%clk 0:00:26.7]} 29... Bb4 {[%clk 0:00:48.5]} 30. Kg2 {[%clk 0:00:24.2]} 30...
Bc5 {[%clk 0:00:48.1]} 31. Kf3 {[%clk 0:00:24.3]} 31... h5 {[%clk 0:00:47.5]}
32. h4 {[%clk 0:00:23.8]} 32... Kg7 {[%clk 0:00:47.2]} 33. Ra1 {[%clk
0:00:22.2]} 33... Bb4 {[%clk 0:00:38.5]} 34. Rd1 {[%clk 0:00:20.6]} 34... f6
{[%clk 0:00:33.5]} 35. Rf1 {[%clk 0:00:19.3]} 35... g5 {[%clk 0:00:33.5]} 36.
hxg5 {[%clk 0:00:17.2]} 36... fxg5 {[%clk 0:00:34.4]} 37. Ke4 {[%clk 0:00:16.4]}
37... Kf6 {[%clk 0:00:27.8]} 38. f3 {[%clk 0:00:13.3]} 38... Bc5 {[%clk
0:00:25.1]} 39. Rh1 {[%clk 0:00:05.9]} 39... Rc3 {[%clk 0:00:25.2]} 40. Bd3
{[%clk 0:00:05.6]} 40... Kg6 {[%clk 0:00:23.5]} 41. f4 {[%clk 0:00:03.9]} 41...
Rxb3 {[%clk 0:00:22]} 42. fxg5 {[%clk 0:00:01.3]} 42... Kxg5 {[%clk 0:00:22.9]}
0-1

[Event "Early-Titled-Tuesday-Blitz-April-23-2024"]
[Site "Chess.com"]
[Date "2024.04.23"]
[Round "1"]
[White "Fy_Rakotomaharo"]
[Black "DinaBelenkaya"]
[Result "0-1"]
[WhiteElo "2707"]
[BlackElo "2423"]
[TimeControl "180+1"]
[EndTime "8:07:23 PDT"]
[Termination "DinaBelenkaya won on time"]

1. d4 {[%clk 0:03:00]} 1... d5 {[%clk 0:02:58.4]} 2. Nf3 {[%clk 0:03:00.2]} 2...
Nf6 {[%clk 0:02:57.4]} 3. Bg5 {[%clk 0:03:00.2]} 3... h6 {[%clk 0:02:55]} 4.
Bxf6 {[%clk 0:02:59.7]} 4... exf6 {[%clk 0:02:55.9]} 5. e3 {[%clk 0:02:59.8]}
5... Bd6 {[%clk 0:02:55.3]} 6. c4 {[%clk 0:02:59.5]} 6... dxc4 {[%clk
0:02:56.2]} 7. Bxc4 {[%clk 0:02:59.8]} 7... O-O {[%clk 0:02:57.1]} 8. Nc3 {[%clk
0:03:00.3]} 8... c6 {[%clk 0:02:55.1]} 9. h3 {[%clk 0:02:59.2]} 9... Nd7 {[%clk
0:02:54.2]} 10. O-O {[%clk 0:02:58.8]} 10... f5 {[%clk 0:02:54.5]} 11. a3 {[%clk
0:02:53.3]} 11... Qe7 {[%clk 0:02:52.1]} 12. Qc2 {[%clk 0:02:22.3]} 12... Nf6
{[%clk 0:02:51.9]} 13. Rfe1 {[%clk 0:02:17.3]} 13... Ne4 {[%clk 0:02:51.4]} 14.
Bd3 {[%clk 0:02:09.4]} 14... Re8 {[%clk 0:02:50.8]} 15. Nd2 {[%clk 0:02:09.5]}
15... Nxd2 {[%clk 0:02:00.4]} 16. Qxd2 {[%clk 0:02:10.4]} 16... Qg5 {[%clk
0:02:00.5]} 17. Rad1 {[%clk 0:01:24.2]} 17... Be6 {[%clk 0:01:57.8]} 18. e4
{[%clk 0:01:12.6]} 18... Bf4 {[%clk 0:01:17.3]} 19. Qc2 {[%clk 0:01:06.7]} 19...
fxe4 {[%clk 0:01:13.1]} 20. Nxe4 {[%clk 0:01:07]} 20... Qh5 {[%clk 0:01:07.7]}
21. Qe2 {[%clk 0:00:25.9]} 21... Qa5 {[%clk 0:01:02]} 22. Nc5 {[%clk 0:00:22.4]}
22... Bd7 {[%clk 0:00:51.2]} 23. Qf1 {[%clk 0:00:17.3]} 23... Qc7 {[%clk
0:00:38.8]} 24. Bb1 {[%clk 0:00:12.5]} 24... g6 {[%clk 0:00:23.8]} 25. Qc4
{[%clk 0:00:11.5]} 25... Kg7 {[%clk 0:00:20.6]} 26. d5 {[%clk 0:00:12]} 26...
cxd5 {[%clk 0:00:09.5]} 27. Qxd5 {[%clk 0:00:09.9]} 27... Bc6 {[%clk 0:00:08.9]}
28. Qd4+ {[%clk 0:00:09.1]} 28... Be5 {[%clk 0:00:09.4]} 29. Qg4 {[%clk
0:00:07.7]} 29... Bxb2 {[%clk 0:00:08.5]} 30. Ne6+ {[%clk 0:00:02.5]} 30... Rxe6
{[%clk 0:00:06.6]} 31. Rxe6 {[%clk 0:00:01.5]} 31... fxe6 {[%clk 0:00:06.8]} 32.
Qxg6+ {[%clk 0:00:02]} 32... Kf8 {[%clk 0:00:07.2]} 33. Qxh6+ {[%clk 0:00:02.3]}
33... Bg7 {[%clk 0:00:07.5]} 34. Qxe6 {[%clk 0:00:02.4]} 34... Qf7 {[%clk
0:00:05.6]} 35. Qg4 {[%clk 0:00:01.8]} 35... Qf6 {[%clk 0:00:05.3]} 36. Rd3
{[%clk 0:00:01.7]} 36... Kg8 {[%clk 0:00:04.7]} 0-1

[Event "Early-Titled-Tuesday-Blitz-April-23-2024"]
[Site "Chess.com"]
[Date "2024.04.23"]
[Round "1"]
[White "WindWhistler11"]
[Black "Bauman_Guy"]
[Result "0-1"]
[WhiteElo "2520"]
[BlackElo "2920"]
[TimeControl "180+1"]
[EndTime "8:07:25 PDT"]
[Termination "Bauman_Guy won by resignation"]

1. Nf3 {[%clk 0:02:56.5]} 1... Nf6 {[%clk 0:02:59.4]} 2. g3 {[%clk 0:02:56.2]}
2... d5 {[%clk 0:02:59.5]} 3. Bg2 {[%clk 0:02:56.2]} 3... c6 {[%clk 0:02:59.7]}
4. c4 {[%clk 0:02:56]} 4... Bg4 {[%clk 0:02:56.9]} 5. b3 {[%clk 0:02:55.6]} 5...
Nbd7 {[%clk 0:02:56.6]} 6. Bb2 {[%clk 0:02:55.9]} 6... e6 {[%clk 0:02:56.9]} 7.
h3 {[%clk 0:02:52]} 7... Bh5 {[%clk 0:02:56.6]} 8. d3 {[%clk 0:02:52.1]} 8...
Bd6 {[%clk 0:02:56.3]} 9. Nbd2 {[%clk 0:02:52.5]} 9... O-O {[%clk 0:02:56.5]}
10. g4 {[%clk 0:02:47.3]} 10... Bg6 {[%clk 0:02:56.5]} 11. Nh4 {[%clk
0:02:47.8]} 11... Re8 {[%clk 0:02:55.5]} 12. Nxg6 {[%clk 0:02:47.7]} 12... hxg6
{[%clk 0:02:55.6]} 13. e3 {[%clk 0:02:48.2]} 13... a5 {[%clk 0:02:55.2]} 14. a3
{[%clk 0:02:44.9]} 14... b5 {[%clk 0:02:55]} 15. Qc2 {[%clk 0:02:39.6]} 15...
Qe7 {[%clk 0:02:53.9]} 16. O-O {[%clk 0:02:35.4]} 16... Be5 {[%clk 0:02:39.8]}
17. d4 {[%clk 0:02:30.9]} 17... Bd6 {[%clk 0:02:39.1]} 18. c5 {[%clk 0:02:28.2]}
18... Bc7 {[%clk 0:02:38.7]} 19. f4 {[%clk 0:02:28.9]} 19... Nh7 {[%clk
0:02:27.6]} 20. Rae1 {[%clk 0:02:28.3]} 20... g5 {[%clk 0:02:26.8]} 21. Bc1
{[%clk 0:02:17.4]} 21... Ndf6 {[%clk 0:02:14.8]} 22. Nf3 {[%clk 0:02:05.4]}
22... Ne4 {[%clk 0:02:14.5]} 23. Ne5 {[%clk 0:02:01.5]} 23... f6 {[%clk
0:02:01.8]} 24. Nxc6 {[%clk 0:01:51.3]} 24... Qd7 {[%clk 0:02:01.5]} 25. Bxe4
{[%clk 0:01:51.9]} 25... dxe4 {[%clk 0:02:00.9]} 26. Qxe4 {[%clk 0:01:50.9]}
26... Ra6 {[%clk 0:02:01.2]} 27. Ne5 {[%clk 0:01:38.5]} 27... fxe5 {[%clk
0:02:00.2]} 28. fxe5 {[%clk 0:01:39.2]} 28... Nf8 {[%clk 0:01:56.4]} 29. Rf2
{[%clk 0:01:35.8]} 29... Qd5 {[%clk 0:01:14.8]} 30. Qc2 {[%clk 0:01:27.5]} 30...
Nd7 {[%clk 0:00:59.8]} 31. Bb2 {[%clk 0:01:27.1]} 31... a4 {[%clk 0:00:52.4]}
32. b4 {[%clk 0:01:21.7]} 32... Raa8 {[%clk 0:00:46.9]} 33. Qg6 {[%clk
0:01:12.5]} 33... Rf8 {[%clk 0:00:43.9]} 34. Ref1 {[%clk 0:01:11.9]} 34... Rxf2
{[%clk 0:00:43.5]} 35. Rxf2 {[%clk 0:01:12.1]} 35... Rf8 {[%clk 0:00:44.2]} 36.
Qxg5 {[%clk 0:00:34.9]} 36... Bd8 {[%clk 0:00:33.3]} 37. Rxf8+ {[%clk
0:00:33.2]} 37... Nxf8 {[%clk 0:00:34.2]} 38. Qf4 {[%clk 0:00:32.1]} 38... Bh4
{[%clk 0:00:27.3]} 39. e4 {[%clk 0:00:23.2]} 39... Qb3 {[%clk 0:00:25.4]} 40.
Bc1 {[%clk 0:00:20.5]} 40... Qxh3 {[%clk 0:00:20.5]} 41. d5 {[%clk 0:00:19.7]}
41... Ng6 {[%clk 0:00:20.8]} 42. Qf1 {[%clk 0:00:17.7]} 42... Qxg4+ {[%clk
0:00:18.7]} 43. Qg2 {[%clk 0:00:18.2]} 43... Qd1+ {[%clk 0:00:18.9]} 44. Qf1
{[%clk 0:00:18.5]} 44... Qd4+ {[%clk 0:00:18.8]} 45. Kh2 {[%clk 0:00:17]} 45...
Qxe5+ {[%clk 0:00:17.6]} 46. Kh3 {[%clk 0:00:16.6]} 46... exd5 {[%clk 0:00:17]}
0-1